Cogmind - Beta 17 @@@ ROGUE MODE // 2026.08.12 @ 01:49:19 Player: alice_fexa Result: Destroyed by FH-H03(R) with Subdweller Laser Performance ------------- Evolutions (0) 0 Regions Visited (2) 400 Robots Destroyed (21) 105 Value Destroyed (313) 313 Prototype IDs (0) 0 Alien Tech Used (0) 0 Bonus (0) 0 TOTAL SCORE: 818 Bonus ------- None Cogmind --------- Core Integrity 0/250 Matter 278/300 Energy 125/125 System Corruption 0% Temperature Cool (6) Movement Core (850) Ox16 Location -10/Subcaves Parts ------- > --- POWER (1) -------- Light Ion Engine > --- PROPULSION (2) --- Wheel > --- UTILITY (2) ------ Heat Sink High-capacity Storage Unit > --- WEAPON (2) ------- Medium Laser Subdweller Machine Gun > --- INVENTORY (20) --- Ion Engine Light Ion Engine Light Treads Light Treads Hover Unit Large Storage Unit Large Matter Pod (150) Seismic Detector Seismic Detector EM Pulse Gun Riot Gun Light Assault Rifle Light Assault Rifle Light Assault Rifle Light Assault Rifle Light Assault Rifle Light Assault Rifle Subdweller Shrapnel Launcher Makeshift Hammer Peak State ------------ > --- POWER ------------ Light Ion Engine > --- PROPULSION ------- Light Treads Light Treads > --- UTILITY ---------- Improved Heat Sink High-capacity Storage Unit > --- WEAPON ----------- Medium Laser Subdweller Machine Gun > --- INVENTORY -------- Ion Engine Light Ion Engine Light Ion Engine Light Treads Light Treads Wheel Hover Unit Heat Sink Large Storage Unit Large Matter Pod Seismic Detector Seismic Detector EM Pulse Gun Light Assault Rifle Light Assault Rifle Light Assault Rifle Light Assault Rifle Light Assault Rifle Light Assault Rifle Subdweller Shrapnel Launcher [Rating: 12] Favorites ----------- Power Light Ion Engine Engine Light Ion Engine Propulsion Light Treads Treads Light Treads Wheel Wheel Utility Targeting Computer Device Seismic Detector Storage Large Storage Unit Processor Targeting Computer Weapon Light Assault Rifle Energy Gun Medium Laser Ballistic Gun Light Assault Rifle Build | -11 -10 -10 ------- Run | Yrd Mat Sub Slots Evolved . | . . . Power . | . . . Propulsion . | . . . Utility . | . . . Weapon . | . . . Parts Attached 22 | 7 10 5 Power 2 | 2 . . Engine 2 | 2 . . Core . | . . . Reactor . | . . . Propulsion 5 | 2 2 1 Treads 3 | 2 1 . Leg . | . . . Wheel 2 | . 1 1 Hover . | . . . Flight . | . . . Utility 7 | 1 4 2 Device 3 | . 1 2 Storage 3 | 1 2 . Processor 1 | . 1 . Hackware . | . . . Protection . | . . . Artifact . | . . . Weapon 8 | 2 4 2 Energy Gun 1 | . . 1 Energy Cannon . | . . . Ballistic Gun 7 | 2 4 1 Ballistic Cannon . | . . . Launcher . | . . . Special Weapon . | . . . Impact Weapon . | . . . Slashing Weapon . | . . . Piercing Weapon . | . . . Special Melee Weapon . | . . . Unidentified Prototypes . | . . . Parts Lost 4 | . 1 3 Power 1 | . 1 . Propulsion 2 | . . 2 Utility 1 | . . 1 Weapon . | . . . Highest Loss Streak 2 | . 1 2 To Critical Strikes . | . . . Average Backups 13 | 3 13 19 Power 2 | . 1 2 Propulsion 2 | 1 2 3 Utility 4 | . 4 5 Weapon 5 | . 4 8 Tool/Special . | . . . Unused Backups 20 | . 6 14 Power 6 | . 3 3 Propulsion 3 | . 1 2 Utility 4 | . 2 2 Weapon 7 | . . 7 Tool/Special . | . . . Average Slot Usage (%) 98 | . 98 99 Engine 14 | . 14 14 Treads 23 | . 25 16 Wheel 4 | . 2 11 Device 3 | . . 13 Storage 14 | . 14 14 Processor 9 | . 12 . Energy Gun 2 | . . 11 Ballistic Gun 25 | . 28 16 Peak Build Rating 12 | 6 9 12 Average Rating 8 | 5 7 10 On Entrance 5 | . 6 9 Avg Prop Armor Cover (%) 13 | . 14 13 Naked Turns . | . . . Heaviest Build 50 | 13 45 50 Greatest Support 40 | 40 40 40 Greatest Overweight (x) 4 | . 4 4 Average Overweight (x) 1 | . . 3 Largest Inventory Capacity 20 | 8 20 20 Average Capacity 15 | 7 14 20 Most Carried 20 | 5 20 20 Average Carried 13 | 3 13 19 Final Capacity 20 | 8 20 20 Final Carried 20 | 5 20 19 Class Distribution -------------------- 100% | Mutant Dominant Class ---------------- Mutant | -10/Materials Mutant | -10/Subcaves Resources | -11 -10 -10 ----------- Run | Yrd Mat Sub Matter Collected 815 | 251 414 150 Remotely . | . . . Salvage Created 603 | 87 432 84 Parts 48 | 8 34 6 Haulers Intercepted 2 | . 2 . Recyclers Shooed 1 | . 1 . Parts Field Recycled . | . . . Retrieved Matter . | . . . Parts Self-Destructed 11 | . . 11 Prevented . | . . . Parts Restored . | . . . Kills | -11 -10 -10 ------- Run | Yrd Mat Sub Combat Hostiles Destroyed 13 | . 11 2 Guns 13 | . 11 2 Classes Destroyed 7 | 2 4 1 Tunneler 2 | 2 . . Hauler 2 | . 2 . Recycler 2 | 1 1 . Watcher 2 | . 2 . Swarmer 9 | . 9 . Grunt 2 | . 2 . Subdweller 2 | . . 2 Best Kill Streak 2 | 2 2 1 Combat Bots Only 2 | . 2 1 Max Kills in Single Turn 1 | 1 1 1 Gunslinging . | . . . Exploded . | . . . Melee . | . . . Uniques/NPCs Destroyed . | . . . Combat | -11 -10 -10 -------- Run | Yrd Mat Sub Hostile Shots Fired 118 | . 81 37 Missed 29 | . 23 6 Hits 89 | . 58 31 Projectile 89 | . 58 31 Critical Strikes 1 | . 1 . Damage Taken 1154 | . 538 616 Core 269 | . 115 154 Absorbed by Shields . | . . . Core Remaining (%) 100 | 100 . . Volleys Fired 74 | 7 57 10 Largest 2 | 2 2 2 Hottest 80 | 40 40 80 Shots Fired 148 | 14 114 20 Gun 148 | 14 114 20 Cannon . | . . . Launcher . | . . . Special . | . . . Kinetic 138 | 14 114 10 Thermal 10 | . . 10 Explosive . | . . . Electromagnetic . | . . . Robot Hit Streak 14 | 6 14 7 Robot Miss Streak 5 | 1 5 2 Penetration Max . | . . . Secondary Targets 1 | . 1 . Max Gunslinging Chain 1 | . 1 . Shots Hit Robots 103 | 11 78 14 Core Hits 43 | 5 32 6 Critical Kills . | . . . Critical Parts Destroyed 1 | . 1 . Critical Strikes 2 | . 1 1 Burn 1 | . . 1 Destroy 1 | . 1 . Melee Attacks . | . . . Impact . | . . . Slashing . | . . . Piercing . | . . . Sneak Attacks . | . . . Combat Hostiles . | . . . Follow-up Attacks . | . . . Damage Inflicted 1074 | 118 731 225 Guns 1072 | 118 729 225 Cannons . | . . . Explosions . | . . . Melee . | . . . Ramming 2 | . 2 . Kinetic 958 | 118 729 111 Thermal 114 | . . 114 Explosive . | . . . Electromagnetic . | . . . Impact . | . . . Slashing . | . . . Piercing . | . . . Highest Corruption . | . . . Average Corruption . | . . . Corruption Purged . | . . . Corruption Blocked . | . . . Overload Shots . | . . . Overflow Damage . | . . . Projectiles . | . . . Explosions . | . . . Melee . | . . . Knockbacks . | . . . Impact . | . . . Kinetic . | . . . Secondary . | . . . Self-Inflicted Damage . | . . . Shots . | . . . Rammed 3 | . 2 1 Targets Rammed 3 | . 2 1 Kicked . | . . . Crushed . | . . . Highest Temperature 27 | . 27 . Average Temperature 15 | . 15 . Received Heat Transfer 204 | . 90 114 Siege Activations . | . . . Martial Activations . | . . . Shielding Activations . | . . . Robots Disrupted . | . . . Combat Hostiles . | . . . Robots Corrupted . | . . . Combat Hostiles . | . . . Parts Fried . | . . . Impact Corruptions . | . . . Robots Melted . | . . . Combat Hostiles . | . . . Parts Melted . | . . . Heat Transferred 407 | . . 407 Parts Sabotaged . | . . . Parts Stolen . | . . . Parts Stripped . | . . . Power Chain Reactions . | . . . Alert | -11 -10 -10 ------- Run | Yrd Mat Sub Maximum Alert Level . | . . . Low Security (%) 100 | 100 100 . Level 1 . | . . . Level 2 . | . . . Level 3 . | . . . Level 4 . | . . . Level 5 . | . . . High Security . | . . . Max Security . | . . . Peak Influence 125 | 10 125 . Initial . | . . . Average 40 | 1 42 . Influence Increases 422 | 15 407 . Destroy 0b10 Robot/C 220 | . 220 . Destroy 0b10 Robot/NC 40 | 15 25 . Destroy Leader 48 | . 48 . Successful Hack 24 | . 24 . Lose Combat Pursuer 90 | . 90 . Influence Decreases 422 | 15 377 30 Entered New Map 15 | . . 15 Time Decay 397 | 15 367 15 Lost Part 10 | . 10 . Squads Dispatched . | . . . Investigation . | . . . Extermination . | . . . Reinforcement . | . . . Assault . | . . . Garrison . | . . . Intercept . | . . . Searches Triggered . | . . . Construction Impeded . | . . . Haulers Reinforced . | . . . Active Scanning Responses . | . . . Cargo Convoy Interrupts . | . . . Stealth | -11 -10 -10 --------- Run | Yrd Mat Sub Distress Signals . | . . . Communications Jammed . | . . . Distress Signals . | . . . Times Spotted 30 | . 24 6 Peak Tracking Total 4 | . 3 4 Tactical Retreats 4 | . 4 . Traps | -11 -10 -10 ------- Run | Yrd Mat Sub Traps Triggered 1 | . 1 . Indirectly . | . . . Trap Hack Attempts . | . . . Triggered . | . . . Disarmed . | . . . Reprogrammed . | . . . Reused . | . . . Traps Extracted . | . . . Installed . | . . . Triggered . | . . . Machines | -11 -10 -10 ---------- Run | Yrd Mat Sub Machines Disabled . | . . . Max in Single Turn . | . . . Machines Repaired . | . . . Machines Dismantled . | . . . Machines Sabotaged . | . . . Overloaded Fab Kills . | . . . Hacking | -11 -10 -10 --------- Run | Yrd Mat Sub Machines Accessed 6 | . 6 . Terminals 5 | . 5 . Fabricators . | . . . Repair Stations . | . . . Recycling Units 1 | . 1 . Scanalyzers . | . . . Garrison Access . | . . . Total Hacks 9 | . 9 . Successful 7 | . 7 . Failed 2 | . 2 . Catastrophic . | . . . Database Lockouts . | . . . Manual 7 | . 7 . Terminals 7 | . 7 . Fabricators . | . . . Repair Stations . | . . . Recycling Units 2 | . 2 . Scanalyzers . | . . . Garrison Access . | . . . Terminal Hacks . | . . . Fabricator Hacks . | . . . Repair Station Hacks . | . . . Recycling Unit Hacks 1 | . 1 . Retrieve Components 1 | . 1 . Scanalyzer . | . . . Garrison Access Hacks . | . . . Unauthorized Hacks 6 | . 6 . Terminals 6 | . 6 . Botnet 1 | . 1 . Skim 5 | . 5 . Fabricators . | . . . Repair Stations . | . . . Recycling Units . | . . . Scanalyzers . | . . . Garrison Access . | . . . Data Cores Recovered . | . . . Used . | . . . Hacking Detections 2 | . 2 . Full Trace Events . | . . . Feedback Events . | . . . Feedback Blocked . | . . . Robot Schematics Acquired . | . . . Robots Built . | . . . Authchips . | . . . Time . | . . . Total Robot Build Rating . | . . . Part Schematics Acquired . | . . . Parts Built . | . . . Authchips . | . . . Time . | . . . Total Part Build Rating . | . . . Part Studies Acquired . | . . . Parts Repaired . | . . . Time . | . . . Parts Recycled . | . . . Recycled Matter . | . . . Retrieved Matter . | . . . Retrieved Components 5 | . 5 . Parts Scanalyzed . | . . . Part Schematics Acquired . | . . . Parts Damaged . | . . . Bothacking | -11 -10 -10 ------------ Run | Yrd Mat Sub Used RIF Installer . | . . . Robots Hacked . | . . . Non-combat . | . . . Combat . | . . . Robot Hacks Applied . | . . . Relay Couplers Released . | . . . Fabnet Peak Effective % . | . . . Robots Rewired . | . . . Allies Hacked . | . . . Hacks Repelled . | . . . Allies | -11 -10 -10 -------- Run | Yrd Mat Sub Total Allies . | . . . Largest Group . | . . . Highest-Rated Group . | . . . Highest-Rated Ally . | . . . Total Orders . | . . . Ally Attacks . | . . . Total Damage . | . . . Kills . | . . . Allies Corrupted . | . . . Allies Melted . | . . . Intel | -11 -10 -10 ------- Run | Yrd Mat Sub Active Infowar (turns) 297 | . . 297 Seismic 297 | . . 297 Robot Analysis Total . | . . . Derelict Logs Recovered 2 | . . 2 Drone Launches . | . . . Drone Recoveries . | . . . Exploration | -11 -10 -10 ------------- Run | Yrd Mat Sub Turns Passed 2066 | 115 1530 421 Spaces Moved 1021 | 49 756 216 Core 6 | 6 . . Treads 629 | 43 568 18 Legs . | . . . Wheels 386 | . 188 198 Hover . | . . . Flight . | . . . Fastest Speed 50 | 50 140 140 Average Speed 153 | 146 155 148 Slowest Speed 240 | 160 240 240 Overloaded Moves . | . . . Propulsion Burnouts . | . . . Robots Hopped . | . . . Potential Cave-ins . | . . . Cave-ins Triggered . | . . . Exploration Rate (%) 35 | 3 97 7 Regions Visited 2 Branch Regions 1 Pre-discovered Areas 3 | . 3 . Known Exits Taken . | . . . Unknown Exits Taken 2 | 1 1 . Scrap Searched 2 | . . 2 Spaces Dug . | . . . Terrain Destroyed . | . . . Melee . | . . . Projectile . | . . . AOE . | . . . Terrain Rammed . | . . . Walls Destroyed . | . . . Machines Disabled . | . . . Actions | -11 -10 -10 --------- Run | Yrd Mat Sub Total 1393 | 76 1022 295 Wait 220 | 10 157 53 Move 1019 | 48 755 216 Hop . | . . . Pick Up 29 | 4 22 3 Fast Attach 9 | 6 3 . Attach 5 | . 1 4 Detach 1 | . . 1 Swap 15 | 1 9 5 Drop 18 | . 16 2 Fire 74 | 7 57 10 Melee . | . . . Ram . | . . . Kick . | . . . Crush 3 | . 2 1 Escape Stasis . | . . . Rewire . | . . . Trap . | . . . Miscellaneous . | . . . Route ------- -11/Scrapyard -10/Materials (discovered 5 exits: *Mat x3 / [*Min] / [*Sub]) -10/Subcaves History --------- Turn | Location | Event 15 | -11/Scrapyard | Discovered new exit (range 16) 116 | -11/Scrapyard | Entered Materials 326 | -10/Materials | Build established: Mutant 653 | -10/Materials | Discovered new exit (range 15) 797 | -10/Materials | Learned location of 2 exits from Mines 824 | -10/Materials | Discovered new exit (range 15) 851 | -10/Materials | Loaded intel: 24 trap records 946 | -10/Materials | Identified exit to Materials 977 | -10/Materials | Learned location of Subcaves (-10) 1634 | -10/Materials | Discovered new exit (range 10) 1646 | -10/Materials | Entered Subcaves 1671 | -10/Subcaves | Disturbed a concealed Subdweller 1737 | -10/Subcaves | Core integrity fell below 50% 1853 | -10/Subcaves | Learned Materials emergency access door positions 2065 | -10/Subcaves | Core integrity fell below 20% 2067 | -10/Subcaves | Destroyed by FH-H03(R) with Subdweller Laser Last Messages --------------- 01792_ Acquired Sub. Shrapnel Launcher. 01793_ Searching scrap... 01793_ Found Mak. Hammer. 01793_ Found Riot Gun. 01793_ Found 47 Matter. 01794_ Acquired 11 matter. 01797_ Subatomizers dissect the Sub. Optics. 01798_ Dropped Lgt. Treads. 01800_ Acquired Mak. Hammer. 01804_ Acquired 20 matter. 01805_ Dropped Lgt. Ion Engine. 01807_ Acquired Riot Gun. 01809_ Subatomizers dissect the Sub. Optics. 01853_ Acquired derelict log, extracted data. Data stored: Materials emergency access points. 02052_ 7F-GMG(R) suffers critical hit (Burn). 02055_ Imp. Heat Sink destroyed. 02063_ Lgt. Treads destroyed. 02065_ 7F-GMG(R) destroyed. 02066_ Subatomizers dissect the Sub. Monowheel. Map ----- +----------------------------------------------------+ | ?????????????????????????????????????????????????? | | ?????????????????????????????????????????????????? | | ?????????????????????????????????????????????????? | | ?????????????????????????????????????????????????? | | ?????????????????????????????????????????????????? | | ??????????????#######????????????????????????????? | | ??????????????#"&!*"#????????????????????????????? | | ??????????????# ##% #????????????????????????????? | | ??????????????# ####????????????????????????????? | | ??????????????## "######?###?????????????????###?? | | ?????????????### ## ### ######??????????## #?? | | ?????????????# " " ##???????### #?? | | ?????????????# ##??##### ##?? | | ?##########??## ## #### # ##??? | | ## # # #??## ## ## ##???? | | # #??# #????? | | ## #### ## #### #????? | | ## ## ### #??# #???? | | ## ##### #?? # | | ### ## #?## # ""? | | #### # ### ##?## ## #?# | | ???######?####?####### ##### ## | | ????????????#### ##?## ###?# #### ####?? | | ????????????# ## #?######??# ##????? | | ?????????????# R ##?????????#### #?????? | | ??????????????# ]%@##?????????????###?????? | | ????????????### &###??????????????????????? | | ????????# ### ##????????????????????????? | | ???????# ##?????????????????????????? | | ??????# ##??????????????????????????? | | ?????? # # ##???????????????????????????? | | ??????? ??#?## ?????????????????????????????? | | ??????????????# ?????????????????????????????? | | ??????????????# ?????????????????????????????? | | ??????????????# ##?????????????????????????????? | | ??????????????## ???????????????????????????????? | | ??????????????? ???????????????????????????????? | | ??????????????# ???????????????????????????????? | | ??????????????# ????????????????????????????????? | | ??????????????# ????????????????????????????????? | | ?????????????? ??????????????????????????????????? | | ?????????????? ??????????????????????????????????? | | ?????????????#???????????????????????????????????? | | ?????????????????????????????????????????????????? | | ?????????????????????????????????????????????????? | | ?????????????????????????????????????????????????? | | ?????????????????????????????????????????????????? | | ?????????????????????????????????????????????????? | | ?????????????????????????????????????????????????? | | ?????????????????????????????????????????????????? | +----------------------------------------------------+ Best States ------------- Heat Dissipation 39 Energy Generation 10 Energy Capacity 250 Matter Stores 300 Matter Capacity 300 Sight Range 16 Terrain Scan Density 10 Evasion (%) 40 Targeting Accuracy 5 Recoil Reduction 2 Item Schematics ----------------- None Robot Schematics ------------------ None Fabricated ------------ Nothing Repaired ---------- Nothing Studied --------- None Alien Tech Used ----------------- None Achievements -------------- None Challenges ------------ None Game ------ Seed GyrokineticMiningCharge Manual? 0 Play Time 00:09:06 Cumulative 1713.7 hours Start 2026.08.12 @ 01:41:43 End 2026.08.12 @ 01:49:19 Sessions 1 Manual Loads 0 Difficulty Rogue Special Mode None Game No. 1232 Rogue 1192 Adventurer 40 Explorer 0 Win Type - Total 227 Types 107/12/76/3/2/4/16/2/1/4 Lore% 98 Gallery% 98 Achievement% 91 Wizard Run 0 Options --------- Layout 0 ASCII 0 Keyboard 0 Movement Numpad Keybinds 0 Fullscreen 0 Font 20/Terminus Map View 76x50 Zoom Use 0% Tactical HUD 1 Map Filters NONE Filters NONE Steam 1 RUN: 1dd69efb-844c-4256-8af5-1ac51ca70078